[Event "December 12 Early 2023"]
[Site "https://www.chess.com"]
[Date "2023.12.12"]
[Round "1"]
[White "Marchesich, Giovanni"]
[Black "Atakhan, Abtin"]
[Result "0-1"]
[Board "100"]
[TimeControl "180+1"]
[WhiteFideId "2824790"]
[BlackFideId "22502203"]
[WhiteElo "2413"]
[BlackElo "2733"]
[WhiteTeam "ITA"]
[BlackTeam "IRI"]
[WhiteClock "0:00:07"]
[BlackClock "0:00:12"]

1. e4 {[%clk 0:03:00]}  c5 {[%clk 0:02:59]} 2. Nf3 {[%clk 0:03:01]}  d6 {[%clk 0:02:59]} 3. d4 {[%clk 0:03:01]}  cxd4 {[%clk 0:03:00]} 4. Nxd4 {[%clk 0:03:02]}  Nf6 {[%clk 0:03:01]} 5. Nc3 {[%clk 0:03:02]}  a6 {[%clk 0:03:01]} 6. Bc4 {[%clk 0:03:02]}  e6 {[%clk 0:03:01]} 7. Bb3 {[%clk 0:03:03]}  b5 {[%clk 0:03:00]} 8. O-O {[%clk 0:03:03]}  Be7 {[%clk 0:02:58]} 9. Qf3 {[%clk 0:03:03]}  Qb6 {[%clk 0:02:58]} 10. Be3 {[%clk 0:03:02]}  Qb7 {[%clk 0:02:58]} 11. Qg3 {[%clk 0:02:54]}  b4 {[%clk 0:02:56]} 12. Na4 {[%clk 0:02:51]}  O-O {[%clk 0:02:47]} 13. Bh6 {[%clk 0:02:47]}  Ne8 {[%clk 0:02:47]} 14. c3 {[%clk 0:02:46]}  Kh8 {[%clk 0:02:30]} 15. Be3 {[%clk 0:02:43]}  a5 {[%clk 0:02:24]} 16. Rac1 {[%clk 0:02:26]}  Nf6 {[%clk 0:02:23]} 17. f3 {[%clk 0:02:25]}  Bd7 {[%clk 0:02:18]} 18. Nc2 {[%clk 0:02:04]}  bxc3 {[%clk 0:02:12]} 19. bxc3 {[%clk 0:02:04]}  Ra6 {[%clk 0:02:02]} 20. Rb1 {[%clk 0:01:58]}  Qc7 {[%clk 0:02:00]} 21. Qf2 {[%clk 0:01:53]}  Bb5 {[%clk 0:01:51]} 22. Rfc1 {[%clk 0:01:48]}  Nbd7 {[%clk 0:01:49]} 23. c4 {[%clk 0:01:38]}  Bc6 {[%clk 0:01:28]} 24. Nd4 {[%clk 0:01:36]}  Bxa4 {[%clk 0:01:29]} 25. Bxa4 {[%clk 0:01:35]}  Nc5 {[%clk 0:01:25]} 26. Bb5 {[%clk 0:01:27]}  Raa8 {[%clk 0:01:17]} 27. Nc6 {[%clk 0:01:20]}  Nd3 {[%clk 0:01:12]} 28. Bb6 {[%clk 0:01:11]}  Qb7 {[%clk 0:01:11]} 29. Qe3 {[%clk 0:01:07]}  Nxc1 {[%clk 0:01:11]} 30. Rxc1 {[%clk 0:01:08]}  a4 {[%clk 0:01:04]} 31. Na5 {[%clk 0:01:03]}  Qc8 {[%clk 0:00:59]} 32. Nc6 {[%clk 0:01:03]}  Re8 {[%clk 0:00:51]} 33. Na7 {[%clk 0:01:01]}  Qb7 {[%clk 0:00:49]} 34. Bxe8 {[%clk 0:00:57]}  Rxe8 {[%clk 0:00:41]} 35. Nb5 {[%clk 0:00:55]}  Nd7 {[%clk 0:00:28]} 36. Bd4 {[%clk 0:00:54]}  Rc8 {[%clk 0:00:25]} 37. Qc3 {[%clk 0:00:37]}  Ne5 {[%clk 0:00:24]} 38. f4 {[%clk 0:00:34]}  Rxc4 {[%clk 0:00:23]} 39. Qb2 {[%clk 0:00:24]}  Nd3 {[%clk 0:00:16]} 40. Bxg7+ {[%clk 0:00:20]}  Kg8 {[%clk 0:00:16]} 41. Rxc4 {[%clk 0:00:12]}  Nxb2 {[%clk 0:00:17]} 42. Bxb2 {[%clk 0:00:13]}  Qxb5 {[%clk 0:00:16]} 43. Rc8+ {[%clk 0:00:13]}  Bf8 {[%clk 0:00:16]} 44. Ba3 {[%clk 0:00:14]}  Qb1+ {[%clk 0:00:15]} 45. Bc1 {[%clk 0:00:12]}  Qxa2 {[%clk 0:00:13]} 46. f5 {[%clk 0:00:13]}  Qe2 {[%clk 0:00:11]} 47. h3 {[%clk 0:00:12]}  Qd1+ {[%clk 0:00:06]} 48. Kh2 {[%clk 0:00:12]}  Qh5 {[%clk 0:00:06]} 49. g4 {[%clk 0:00:12]}  Qh4 {[%clk 0:00:06]} 50. Be3 {[%clk 0:00:09]}  exf5 {[%clk 0:00:05]} 51. exf5 {[%clk 0:00:09]}  Kg7 {[%clk 0:00:05]} 52. Bd4+ {[%clk 0:00:09]}  f6 {[%clk 0:00:06]} 53. Rc7+ {[%clk 0:00:09]}  Kg8 {[%clk 0:00:06]} 54. Kg2 {[%clk 0:00:08]}  Qg5 {[%clk 0:00:06]} 55. Kf3 {[%clk 0:00:08]}  Qd2 {[%clk 0:00:06]} 56. Be3 {[%clk 0:00:08]}  Qd3 {[%clk 0:00:07]} 57. Rc8 {[%clk 0:00:08]}  Qd5+ {[%clk 0:00:07]} 58. Kf2 {[%clk 0:00:08]}  Kf7 {[%clk 0:00:08]} 59. Rc7+ {[%clk 0:00:08]}  Be7 {[%clk 0:00:09]} 60. Rc8 {[%clk 0:00:08]}  Qa2+ {[%clk 0:00:09]} 61. Kg3 {[%clk 0:00:08]}  a3 {[%clk 0:00:10]} 62. h4 {[%clk 0:00:08]}  Qd5 {[%clk 0:00:11]} 63. g5 {[%clk 0:00:08]}  Qe5+ {[%clk 0:00:11]} 64. Kf3 {[%clk 0:00:09]}  Qxf5+ {[%clk 0:00:11]} 65. Ke2 {[%clk 0:00:07]}  Qxc8 {[%clk 0:00:12]} 0-1

[Event "December 12 Early 2023"]
[Site "https://www.chess.com"]
[Date "2023.12.12"]
[Round "1"]
[White "Donskov, Anatoly"]
[Black "Kosteniuk, Alexandra"]
[Result "0-1"]
[Board "102"]
[TimeControl "180+1"]
[WhiteFideId "24143413"]
[BlackFideId "4128125"]
[WhiteElo "2409"]
[BlackElo "2728"]
[WhiteTeam "RUS"]
[BlackTeam "SUI"]
[WhiteClock "0:00:04"]
[BlackClock "0:00:10"]

1. e4 {[%clk 0:03:00]}  c6 {[%clk 0:02:59]} 2. d4 {[%clk 0:02:45]}  d5 {[%clk 0:02:59]} 3. Nc3 {[%clk 0:02:45]}  dxe4 {[%clk 0:02:59]} 4. Nxe4 {[%clk 0:02:46]}  Nf6 {[%clk 0:03:00]} 5. Nxf6+ {[%clk 0:02:46]}  exf6 {[%clk 0:03:00]} 6. c3 {[%clk 0:02:46]}  Bd6 {[%clk 0:02:59]} 7. Bd3 {[%clk 0:02:46]}  Be6 {[%clk 0:02:58]} 8. Qc2 {[%clk 0:02:46]}  Nd7 {[%clk 0:02:56]} 9. Be3 {[%clk 0:02:42]}  Nf8 {[%clk 0:02:55]} 10. Ne2 {[%clk 0:02:39]}  Qc7 {[%clk 0:02:54]} 11. c4 {[%clk 0:02:39]}  Ng6 {[%clk 0:02:45]} 12. O-O-O {[%clk 0:02:38]}  b5 {[%clk 0:02:40]} 13. cxb5 {[%clk 0:02:16]}  O-O {[%clk 0:02:39]} 14. Qxc6 {[%clk 0:02:11]}  Qe7 {[%clk 0:02:34]} 15. Kb1 {[%clk 0:02:05]}  Rfc8 {[%clk 0:02:22]} 16. Qf3 {[%clk 0:01:59]}  Qc7 {[%clk 0:02:13]} 17. d5 {[%clk 0:01:07]}  Bd7 {[%clk 0:01:59]} 18. Bxg6 {[%clk 0:00:57]}  hxg6 {[%clk 0:01:58]} 19. Nd4 {[%clk 0:00:58]}  a6 {[%clk 0:01:53]} 20. Rc1 {[%clk 0:00:46]}  Qb7 {[%clk 0:01:50]} 21. Rxc8+ {[%clk 0:00:43]}  Rxc8 {[%clk 0:01:47]} 22. bxa6 {[%clk 0:00:29]}  Qxa6 {[%clk 0:01:47]} 23. Qe2 {[%clk 0:00:24]}  Qa5 {[%clk 0:01:35]} 24. Rc1 {[%clk 0:00:13]}  Ra8 {[%clk 0:01:33]} 25. Qc4 {[%clk 0:00:10]}  f5 {[%clk 0:01:18]} 26. a3 {[%clk 0:00:10]}  f4 {[%clk 0:01:18]} 27. Nc6 {[%clk 0:00:09]}  Bf5+ {[%clk 0:01:11]} 28. Ka1 {[%clk 0:00:08]}  Qc7 {[%clk 0:01:08]} 29. Bc5 {[%clk 0:00:08]}  Re8 {[%clk 0:00:51]} 30. Bxd6 {[%clk 0:00:08]}  Qxd6 {[%clk 0:00:52]} 31. Qc5 {[%clk 0:00:07]}  Qf6 {[%clk 0:00:52]} 32. d6 {[%clk 0:00:07]}  Re2 {[%clk 0:00:50]} 33. Ne7+ {[%clk 0:00:07]}  Kh7 {[%clk 0:00:50]} 34. Qc3 {[%clk 0:00:07]}  Qxd6 {[%clk 0:00:40]} 35. Nxf5 {[%clk 0:00:08]}  gxf5 {[%clk 0:00:41]} 36. Qh3+ {[%clk 0:00:08]}  Kg6 {[%clk 0:00:41]} 37. Qf3 {[%clk 0:00:08]}  Re6 {[%clk 0:00:40]} 38. h4 {[%clk 0:00:08]}  Re4 {[%clk 0:00:24]} 39. g3 {[%clk 0:00:07]}  fxg3 {[%clk 0:00:18]} 40. fxg3 {[%clk 0:00:08]}  Qe5 {[%clk 0:00:16]} 41. Rf1 {[%clk 0:00:08]}  Re3 {[%clk 0:00:15]} 42. Qc6+ {[%clk 0:00:07]}  f6 {[%clk 0:00:14]} 43. Qc1 {[%clk 0:00:08]}  Rxa3+ {[%clk 0:00:14]} 44. Kb1 {[%clk 0:00:08]}  Rxg3 {[%clk 0:00:14]} 45. Rg1 {[%clk 0:00:07]}  Qe4+ {[%clk 0:00:14]} 46. Ka1 {[%clk 0:00:07]}  f4 {[%clk 0:00:12]} 47. Rf1 {[%clk 0:00:06]}  Qa4+ {[%clk 0:00:11]} 48. Kb1 {[%clk 0:00:06]}  Qe4+ {[%clk 0:00:12]} 49. Ka1 {[%clk 0:00:06]}  f3 {[%clk 0:00:11]} 50. h5+ {[%clk 0:00:06]}  Kh7 {[%clk 0:00:11]} 51. Qc7 {[%clk 0:00:05]}  Rg2 {[%clk 0:00:11]} 52. h6 {[%clk 0:00:04]}  Kxh6 {[%clk 0:00:09]} 53. Rh1+ {[%clk 0:00:05]}  Kg6 {[%clk 0:00:10]} 54. Qc8 {[%clk 0:00:05]}  Qa4+ {[%clk 0:00:09]} 55. Kb1 {[%clk 0:00:05]}  Qe4+ {[%clk 0:00:10]} 56. Ka1 {[%clk 0:00:05]}  Qe5 {[%clk 0:00:10]} 57. Qh3 {[%clk 0:00:04]}  Qxb2# {[%clk 0:00:10]} 0-1

[Event "December 12 Early 2023"]
[Site "https://www.chess.com"]
[Date "2023.12.12"]
[Round "1"]
[White "Matthes, Aaron"]
[Black "Arslanov, Shamil"]
[Result "0-1"]
[Board "104"]
[TimeControl "180+1"]
[WhiteFideId "16227310"]
[BlackFideId "4192826"]
[WhiteElo "2407"]
[BlackElo "2717"]
[WhiteTeam "GER"]
[BlackTeam "RUS"]
[WhiteClock "0:01:17"]
[BlackClock "0:01:59"]

1. Nf3 {[%clk 0:02:55]}  d6 {[%clk 0:02:57]} 2. d4 {[%clk 0:02:55]}  e5 {[%clk 0:02:57]} 3. dxe5 {[%clk 0:02:54]}  Bg4 {[%clk 0:02:57]} 4. exd6 {[%clk 0:02:50]}  Bxd6 {[%clk 0:02:57]} 5. Nc3 {[%clk 0:02:48]}  Nc6 {[%clk 0:02:57]} 6. e4 {[%clk 0:02:45]}  Qe7 {[%clk 0:02:57]} 7. Be2 {[%clk 0:02:43]}  O-O-O {[%clk 0:02:57]} 8. Bd2 {[%clk 0:02:41]}  Bxf3 {[%clk 0:02:56]} 9. Bxf3 {[%clk 0:02:41]}  Bf4 {[%clk 0:02:56]} 10. Nd5 {[%clk 0:02:39]}  Rxd5 {[%clk 0:02:56]} 11. Bxf4 {[%clk 0:02:31]}  Rxd1+ {[%clk 0:02:54]} 12. Rxd1 {[%clk 0:02:32]}  Nf6 {[%clk 0:02:40]} 13. O-O {[%clk 0:02:31]}  Ne5 {[%clk 0:02:39]} 14. Be2 {[%clk 0:02:30]}  g5 {[%clk 0:02:31]} 15. Bxg5 {[%clk 0:02:27]}  Rg8 {[%clk 0:02:31]} 16. Bh4 {[%clk 0:02:26]}  Qe6 {[%clk 0:02:15]} 17. Rfe1 {[%clk 0:02:16]}  Nxe4 {[%clk 0:02:08]} 18. f4 {[%clk 0:02:02]}  Qb6+ {[%clk 0:02:03]} 19. Kh1 {[%clk 0:02:00]}  Nf2+ {[%clk 0:02:04]} 20. Bxf2 {[%clk 0:01:58]}  Qxf2 {[%clk 0:02:05]} 21. Bf1 {[%clk 0:01:46]}  Nf3 {[%clk 0:02:00]} 22. Rd2 {[%clk 0:01:17]}  Qg1# {[%clk 0:01:59]} 0-1

[Event "December 12 Early 2023"]
[Site "https://www.chess.com"]
[Date "2023.12.12"]
[Round "1"]
[White "Novozhilov, Semen"]
[Black "Tymrakiewicz, Rafal"]
[Result "1-0"]
[Board "105"]
[TimeControl "180+1"]
[WhiteFideId "24289167"]
[BlackFideId "1108832"]
[WhiteElo "2717"]
[BlackElo "2407"]
[WhiteTeam "RUS"]
[BlackTeam "POL"]
[WhiteClock "0:01:28"]
[BlackClock "0:00:00"]

1. d4 {[%clk 0:03:00]}  d5 {[%clk 0:02:08]} 2. c4 {[%clk 0:02:59]}  c6 {[%clk 0:02:08]} 3. Nf3 {[%clk 0:02:59]}  Nf6 {[%clk 0:02:06]} 4. e3 {[%clk 0:02:59]}  g6 {[%clk 0:02:04]} 5. b3 {[%clk 0:02:58]}  Bg7 {[%clk 0:01:57]} 6. Bb2 {[%clk 0:02:57]}  O-O {[%clk 0:01:34]} 7. Bd3 {[%clk 0:02:56]}  b6 {[%clk 0:01:20]} 8. O-O {[%clk 0:02:56]}  Bb7 {[%clk 0:01:20]} 9. Nbd2 {[%clk 0:02:53]}  Re8 {[%clk 0:01:16]} 10. Ne5 {[%clk 0:02:53]}  c5 {[%clk 0:01:15]} 11. cxd5 {[%clk 0:02:51]}  Nxd5 {[%clk 0:01:14]} 12. Bb5 {[%clk 0:02:50]}  Bxe5 {[%clk 0:01:05]} 13. dxe5 {[%clk 0:02:35]}  Bc6 {[%clk 0:01:01]} 14. Be2 {[%clk 0:02:32]}  Nc7 {[%clk 0:00:58]} 15. Qc2 {[%clk 0:02:30]}  Qd7 {[%clk 0:00:55]} 16. Rad1 {[%clk 0:02:28]}  Qf5 {[%clk 0:00:54]} 17. e4 {[%clk 0:02:25]}  Qc8 {[%clk 0:00:45]} 18. Nc4 {[%clk 0:02:23]}  Nd7 {[%clk 0:00:41]} 19. Bg4 {[%clk 0:02:17]}  Rd8 {[%clk 0:00:37]} 20. f4 {[%clk 0:02:05]}  b5 {[%clk 0:00:37]} 21. Ne3 {[%clk 0:02:04]}  e6 {[%clk 0:00:36]} 22. f5 {[%clk 0:02:03]}  Qb7 {[%clk 0:00:35]} 23. fxe6 {[%clk 0:02:03]}  Nxe6 {[%clk 0:00:34]} 24. Nd5 {[%clk 0:02:01]}  Nd4 {[%clk 0:00:27]} 25. Bxd4 {[%clk 0:01:52]}  cxd4 {[%clk 0:00:28]} 26. Bxd7 {[%clk 0:01:49]}  Bxd7 {[%clk 0:00:26]} 27. Rxd4 {[%clk 0:01:46]}  Be6 {[%clk 0:00:24]} 28. Qd2 {[%clk 0:01:47]}  Kg7 {[%clk 0:00:24]} 29. h4 {[%clk 0:01:45]}  h6 {[%clk 0:00:23]} 30. h5 {[%clk 0:01:45]}  g5 {[%clk 0:00:15]} 31. Qf2 {[%clk 0:01:45]}  Bxd5 {[%clk 0:00:14]} 32. Qf6+ {[%clk 0:01:46]}  Kg8 {[%clk 0:00:14]} 33. exd5 {[%clk 0:01:46]}  Qb6 {[%clk 0:00:14]} 34. Qxb6 {[%clk 0:01:39]}  axb6 {[%clk 0:00:13]} 35. Rf6 {[%clk 0:01:39]}  Rxa2 {[%clk 0:00:11]} 36. Rxb6 {[%clk 0:01:40]}  Kg7 {[%clk 0:00:11]} 37. Rxb5 {[%clk 0:01:39]}  Re2 {[%clk 0:00:11]} 38. d6 {[%clk 0:01:39]}  f6 {[%clk 0:00:10]} 39. Rb7+ {[%clk 0:01:37]}  Kf8 {[%clk 0:00:09]} 40. exf6 {[%clk 0:01:38]}  Re6 {[%clk 0:00:10]} 41. d7 {[%clk 0:01:38]}  Rxf6 {[%clk 0:00:10]} 42. Rc7 {[%clk 0:01:39]}  Ke7 {[%clk 0:00:09]} 43. b4 {[%clk 0:01:38]}  Rd6 {[%clk 0:00:08]} 44. Rxd6 {[%clk 0:01:28]}  Kxd6 {[%clk 0:00:08]} 45. Ra7 {[%clk 0:01:28]}  Kd5 {[%clk 0:00:05]} 46. Kh2 {[%clk 0:01:25]}  Kc4 {[%clk 0:00:05]} 47. Ra6 {[%clk 0:01:26]}  Rxd7 {[%clk 0:00:03]} 48. Rxh6 {[%clk 0:01:27]}  Kxb4 {[%clk 0:00:04]} 49. Rg6 {[%clk 0:01:27]}  Rd5 {[%clk 0:00:04]} 50. h6 {[%clk 0:01:28]}  g4 {[%clk 0:00:04]} 51. Kg3 {[%clk 0:01:28]}  Rh5 {[%clk 0:00:04]} 52. Kxg4 {[%clk 0:01:29]}  Rh1 {[%clk 0:00:04]} 53. Kg5 {[%clk 0:01:28]}  Kc5 {[%clk 0:00:05]} 54. Kf6 {[%clk 0:01:27]}  Kd5 {[%clk 0:00:06]} 55. Kg7 {[%clk 0:01:28]}  Ke4 {[%clk 0:00:06]} 56. h7 {[%clk 0:01:29]}  Kf5 {[%clk 0:00:00]} 57. Rh6 {[%clk 0:01:28]} 1-0

[Event "December 12 Early 2023"]
[Site "https://www.chess.com"]
[Date "2023.12.12"]
[Round "1"]
[White "Kourkoulos-Arditis, Stamatis"]
[Black "Ovezdurdyyeva, Jemal"]
[Result "1-0"]
[Board "107"]
[TimeControl "180+1"]
[WhiteFideId "4221990"]
[BlackFideId "14001888"]
[WhiteElo "2714"]
[BlackElo "2405"]
[WhiteTeam "GRE"]
[BlackTeam "TKM"]
[WhiteClock "0:00:50"]
[BlackClock "0:01:16"]

1. e4 {[%clk 0:03:00]}  d6 {[%clk 0:02:59]} 2. d4 {[%clk 0:02:57]}  Nf6 {[%clk 0:02:58]} 3. Nc3 {[%clk 0:02:56]}  g6 {[%clk 0:02:59]} 4. g3 {[%clk 0:02:56]}  Bg7 {[%clk 0:02:59]} 5. Bg2 {[%clk 0:02:57]}  c6 {[%clk 0:03:00]} 6. Nge2 {[%clk 0:02:57]}  b5 {[%clk 0:03:00]} 7. a3 {[%clk 0:02:56]}  O-O {[%clk 0:03:00]} 8. O-O {[%clk 0:02:57]}  a5 {[%clk 0:02:58]} 9. e5 {[%clk 0:02:52]}  dxe5 {[%clk 0:02:48]} 10. dxe5 {[%clk 0:02:53]}  Qxd1 {[%clk 0:02:47]} 11. Rxd1 {[%clk 0:02:53]}  Nfd7 {[%clk 0:02:47]} 12. f4 {[%clk 0:02:39]}  Nb6 {[%clk 0:02:35]} 13. b3 {[%clk 0:02:36]}  Bf5 {[%clk 0:02:33]} 14. Be3 {[%clk 0:02:34]}  N6d7 {[%clk 0:02:21]} 15. Nd4 {[%clk 0:02:33]}  Ra6 {[%clk 0:02:18]} 16. Nxf5 {[%clk 0:02:16]}  gxf5 {[%clk 0:02:18]} 17. Rd2 {[%clk 0:02:11]}  Rc8 {[%clk 0:01:58]} 18. Rad1 {[%clk 0:02:10]}  Rc7 {[%clk 0:01:59]} 19. Kf2 {[%clk 0:01:36]}  e6 {[%clk 0:01:53]} 20. h3 {[%clk 0:01:07]}  f6 {[%clk 0:01:44]} 21. exf6 {[%clk 0:01:07]}  Bxf6 {[%clk 0:01:45]} 22. Ne2 {[%clk 0:01:08]}  c5 {[%clk 0:01:40]} 23. Rd6 {[%clk 0:01:05]}  Rxd6 {[%clk 0:01:40]} 24. Rxd6 {[%clk 0:01:06]}  c4 {[%clk 0:01:40]} 25. b4 {[%clk 0:01:04]}  axb4 {[%clk 0:01:39]} 26. axb4 {[%clk 0:01:05]}  Be7 {[%clk 0:01:39]} 27. Rxe6 {[%clk 0:01:04]}  Bxb4 {[%clk 0:01:39]} 28. Bd5 {[%clk 0:01:02]}  Kf8 {[%clk 0:01:35]} 29. Nd4 {[%clk 0:01:02]}  Nc5 {[%clk 0:01:31]} 30. Rf6+ {[%clk 0:01:00]}  Kg7 {[%clk 0:01:28]} 31. Rxf5 {[%clk 0:00:51]}  Nbd7 {[%clk 0:01:26]} 32. Nxb5 {[%clk 0:00:49]}  Rb7 {[%clk 0:01:20]} 33. Bd4+ {[%clk 0:00:49]}  Kg6 {[%clk 0:01:19]} 34. Rg5+ {[%clk 0:00:49]}  Kh6 {[%clk 0:01:16]} 35. Bg7# {[%clk 0:00:50]} 1-0

[Event "December 12 Early 2023"]
[Site "https://www.chess.com"]
[Date "2023.12.12"]
[Round "1"]
[White "Skaric, Djuro"]
[Black "Rosen, Eric"]
[Result "0-1"]
[Board "110"]
[TimeControl "180+1"]
[WhiteFideId "934569"]
[BlackFideId "2032562"]
[WhiteElo "2402"]
[BlackElo "2704"]
[WhiteTeam "SRB"]
[BlackTeam "USA"]
[WhiteClock "0:01:35"]
[BlackClock "0:00:50"]

1. g3 {[%clk 0:03:00]}  d5 {[%clk 0:02:55]} 2. Bg2 {[%clk 0:03:00]}  Nf6 {[%clk 0:02:55]} 3. d3 {[%clk 0:03:01]}  e6 {[%clk 0:02:53]} 4. Nf3 {[%clk 0:03:01]}  Be7 {[%clk 0:02:53]} 5. O-O {[%clk 0:03:02]}  O-O {[%clk 0:02:54]} 6. h3 {[%clk 0:03:00]}  b6 {[%clk 0:02:51]} 7. Nc3 {[%clk 0:03:00]}  Bb7 {[%clk 0:02:52]} 8. e4 {[%clk 0:03:00]}  dxe4 {[%clk 0:02:52]} 9. Ng5 {[%clk 0:02:59]}  Nc6 {[%clk 0:02:52]} 10. Ngxe4 {[%clk 0:02:59]}  Nxe4 {[%clk 0:02:52]} 11. dxe4 {[%clk 0:03:00]}  Qc8 {[%clk 0:02:52]} 12. f4 {[%clk 0:02:58]}  Rd8 {[%clk 0:02:51]} 13. Bd2 {[%clk 0:02:49]}  Bc5+ {[%clk 0:02:46]} 14. Kh2 {[%clk 0:02:49]}  Be3 {[%clk 0:02:45]} 15. Nb1 {[%clk 0:02:49]}  Ba6 {[%clk 0:02:35]} 16. Rh1 {[%clk 0:02:43]}  Qd7 {[%clk 0:02:22]} 17. Qg4 {[%clk 0:02:42]}  Bxd2 {[%clk 0:02:00]} 18. Rd1 {[%clk 0:02:41]}  Qd4 {[%clk 0:02:01]} 19. Nxd2 {[%clk 0:02:37]}  Qf2 {[%clk 0:01:33]} 20. Nf3 {[%clk 0:02:28]}  Qxc2 {[%clk 0:01:21]} 21. Ne1 {[%clk 0:02:14]}  Qxb2 {[%clk 0:01:18]} 22. e5 {[%clk 0:02:12]}  Be2 {[%clk 0:00:54]} 23. Rxd8+ {[%clk 0:02:09]}  Rxd8 {[%clk 0:00:55]} 24. Qg5 {[%clk 0:01:43]}  Rd2 {[%clk 0:00:55]} 25. Bxc6 {[%clk 0:01:43]}  Bf3+ {[%clk 0:00:52]} 26. Kg1 {[%clk 0:01:35]}  Qd4+ {[%clk 0:00:50]} 0-1

[Event "December 12 Early 2023"]
[Site "https://www.chess.com"]
[Date "2023.12.12"]
[Round "1"]
[White "Martinez Ramirez, Lennis"]
[Black "Bazilius, Augustinas"]
[Result "1/2-1/2"]
[Board "111"]
[TimeControl "180+1"]
[WhiteFideId "3509079"]
[BlackFideId "12832251"]
[WhiteElo "2702"]
[BlackElo "2401"]
[WhiteTeam "CUB"]
[BlackTeam "LTU"]
[WhiteClock "0:00:04"]
[BlackClock "0:00:15"]

1. Nf3 {[%clk 0:03:00]}  Nf6 {[%clk 0:02:51]} 2. g3 {[%clk 0:03:01]}  c5 {[%clk 0:02:52]} 3. Bg2 {[%clk 0:03:01]}  g6 {[%clk 0:02:45]} 4. O-O {[%clk 0:03:02]}  Bg7 {[%clk 0:02:46]} 5. Nc3 {[%clk 0:03:01]}  O-O {[%clk 0:02:47]} 6. e4 {[%clk 0:03:01]}  d5 {[%clk 0:02:48]} 7. exd5 {[%clk 0:02:59]}  Nxd5 {[%clk 0:02:46]} 8. Ne4 {[%clk 0:02:52]}  b6 {[%clk 0:02:42]} 9. d4 {[%clk 0:02:51]}  cxd4 {[%clk 0:02:39]} 10. Nxd4 {[%clk 0:02:44]}  Bb7 {[%clk 0:02:39]} 11. c3 {[%clk 0:02:39]}  Nc6 {[%clk 0:02:38]} 12. Nxc6 {[%clk 0:02:33]}  Bxc6 {[%clk 0:02:37]} 13. Qe2 {[%clk 0:02:32]}  Qc7 {[%clk 0:02:26]} 14. h4 {[%clk 0:02:21]}  h5 {[%clk 0:02:22]} 15. Bg5 {[%clk 0:02:20]}  Qb7 {[%clk 0:02:13]} 16. Rfe1 {[%clk 0:02:18]}  Rfd8 {[%clk 0:02:06]} 17. Rad1 {[%clk 0:02:17]}  Nf6 {[%clk 0:01:45]} 18. Nxf6+ {[%clk 0:01:54]}  Bxf6 {[%clk 0:01:46]} 19. Bxc6 {[%clk 0:01:52]}  Qxc6 {[%clk 0:01:45]} 20. Rxd8+ {[%clk 0:01:53]}  Rxd8 {[%clk 0:01:45]} 21. Bxf6 {[%clk 0:01:53]}  exf6 {[%clk 0:01:45]} 22. Rd1 {[%clk 0:01:53]}  Rxd1+ {[%clk 0:01:33]} 23. Qxd1 {[%clk 0:01:53]}  Qe6 {[%clk 0:01:30]} 24. b3 {[%clk 0:01:46]}  Qe5 {[%clk 0:01:27]} 25. Qd2 {[%clk 0:01:45]}  f5 {[%clk 0:01:27]} 26. Qd8+ {[%clk 0:01:41]}  Kg7 {[%clk 0:01:27]} 27. Qd4 {[%clk 0:01:40]}  Qxd4 {[%clk 0:01:21]} 28. cxd4 {[%clk 0:01:41]}  Kf6 {[%clk 0:01:20]} 29. Kg2 {[%clk 0:01:40]}  Ke6 {[%clk 0:01:19]} 30. Kf3 {[%clk 0:01:41]}  Kd5 {[%clk 0:01:16]} 31. Ke3 {[%clk 0:01:39]}  b5 {[%clk 0:01:16]} 32. Kd3 {[%clk 0:01:29]}  b4 {[%clk 0:01:05]} 33. Ke3 {[%clk 0:01:25]}  f6 {[%clk 0:01:03]} 34. f4 {[%clk 0:01:21]}  Ke6 {[%clk 0:01:00]} 35. Kd2 {[%clk 0:01:14]}  Kd6 {[%clk 0:00:57]} 36. Ke3 {[%clk 0:01:12]}  Ke6 {[%clk 0:00:56]} 37. Ke2 {[%clk 0:01:10]}  Kd6 {[%clk 0:00:57]} 38. Kd2 {[%clk 0:01:11]}  Ke6 {[%clk 0:00:57]} 39. Kd3 {[%clk 0:01:12]}  Kd5 {[%clk 0:00:58]} 40. Ke3 {[%clk 0:01:12]}  a6 {[%clk 0:00:55]} 41. Kd3 {[%clk 0:01:11]}  a5 {[%clk 0:00:56]} 42. Ke3 {[%clk 0:01:04]}  Ke6 {[%clk 0:00:56]} 43. Kd3 {[%clk 0:00:50]}  Kd5 {[%clk 0:00:55]} 44. Ke3 {[%clk 0:00:47]}  Kd6 {[%clk 0:00:54]} 45. Kd2 {[%clk 0:00:44]}  Kc6 {[%clk 0:00:54]} 46. Kc2 {[%clk 0:00:43]}  Kd6 {[%clk 0:00:54]} 47. Kd2 {[%clk 0:00:23]}  Kc6 {[%clk 0:00:53]} 48. Ke3 {[%clk 0:00:23]}  Kb6 {[%clk 0:00:37]} 49. d5 {[%clk 0:00:10]}  Kc5 {[%clk 0:00:34]} 50. d6 {[%clk 0:00:11]}  Kxd6 {[%clk 0:00:34]} 51. Kd4 {[%clk 0:00:11]}  Kc6 {[%clk 0:00:26]} 52. Kc4 {[%clk 0:00:12]}  g5 {[%clk 0:00:16]} 53. fxg5 {[%clk 0:00:08]}  fxg5 {[%clk 0:00:17]} 54. hxg5 {[%clk 0:00:08]}  Kd6 {[%clk 0:00:18]} 55. Kd4 {[%clk 0:00:08]}  Ke6 {[%clk 0:00:16]} 56. Ke3 {[%clk 0:00:07]}  Kf7 {[%clk 0:00:16]} 57. Kf3 {[%clk 0:00:07]}  Kg7 {[%clk 0:00:15]} 58. Ke3 {[%clk 0:00:07]}  Kf7 {[%clk 0:00:14]} 59. Kf3 {[%clk 0:00:04]}  Kg7 {[%clk 0:00:14]} 60. Ke3 {[%clk 0:00:04]}  Kh7 {[%clk 0:00:15]} 61. Kf3 {[%clk 0:00:04]}  Kg7 {[%clk 0:00:15]} 1/2-1/2